Cogmind - Beta 16.1 @@@ ROGUE MODE // 2026.03.31 @ 19:52:08 Player: KURIIRI Result: Destroyed by Piercing Trap Performance ------------- Evolutions (0) 0 Regions Visited (2) 400 Robots Destroyed (40) 200 Value Destroyed (1125) 1125 Prototype IDs (2) 40 Alien Tech Used (0) 0 Bonus (0) 0 TOTAL SCORE: 1765 Bonus ------- None Cogmind --------- Core Integrity 0/250 Matter 300/300 Energy 124/125 System Corruption 0% Temperature Cool (0) Movement Rolling (130) Ox2 Location -10/Subcaves Parts ------- > --- POWER (1) -------- Light Ion Engine > --- PROPULSION (2) --- Subdweller Monowheel > --- UTILITY (2) ------ High-capacity Storage Unit Improved Targeting Computer > --- WEAPON (2) ------- Subdweller Beam Cannon Subdweller Beam Cannon > --- INVENTORY (20) --- Light Nuclear Core Light Treads Wheel Wheel Improved Heat Sink Machine Analyzer Light Armor Plating Rainbow Chip Small Laser Subdweller Laser Powered Cannon Improved Light Cannon Improved Light Cannon Grenade Launcher Grenade Launcher Peak State ------------ > --- POWER ------------ Light Ion Engine > --- PROPULSION ------- Spiked Treads Subdweller Monowheel > --- UTILITY ---------- High-capacity Storage Unit Improved Targeting Computer > --- WEAPON ----------- Subdweller Beam Cannon Subdweller Beam Cannon > --- INVENTORY -------- Light Nuclear Core Light Treads Wheel Wheel Improved Heat Sink Machine Analyzer Light Armor Plating Rainbow Chip Small Laser Subdweller Laser Powered Cannon Improved Light Cannon Improved Light Cannon Grenade Launcher Grenade Launcher [Rating: 16] Favorites ----------- Power Light Ion Engine Engine Light Ion Engine Propulsion Light Treads Treads Light Treads Leg Aluminum Leg Wheel Wheel Utility Improved Targeting Computer Device Improved Terrain Scanner Storage High-capacity Storage Unit Processor Improved Targeting Computer Weapon Improved Light Cannon Energy Gun Subdweller Laser Energy Cannon Subdweller Beam Cannon Ballistic Gun Subdweller Machine Gun Ballistic Cannon Improved Light Cannon Launcher Grenade Launcher Build | -11 -10 -10 ------- Run | Yrd Mat Sub Slots Evolved . | . . . Power . | . . . Propulsion . | . . . Utility . | . . . Weapon . | . . . Parts Attached 23 | 3 6 14 Power 2 | . . 2 Engine 2 | . . 2 Core . | . . . Reactor . | . . . Propulsion 8 | 2 1 5 Treads 4 | 2 . 2 Leg . | . . . Wheel 4 | . 1 3 Hover . | . . . Flight . | . . . Utility 4 | 1 3 . Device 1 | 1 . . Storage 2 | . 2 . Processor 1 | . 1 . Hackware . | . . . Protection . | . . . Artifact . | . . . Weapon 9 | . 2 7 Energy Gun 1 | . . 1 Energy Cannon 2 | . . 2 Ballistic Gun 1 | . . 1 Ballistic Cannon 4 | . 2 2 Launcher 1 | . . 1 Special Weapon . | . . . Impact Weapon . | . . . Slashing Weapon . | . . . Piercing Weapon . | . . . Special Melee Weapon . | . . . Unidentified Prototypes . | . . . Parts Lost 7 | . . 7 Power 2 | . . 2 Propulsion 4 | . . 4 Utility . | . . . Weapon 1 | . . 1 Highest Loss Streak 1 | . . 1 To Critical Strikes . | . . . Average Backups 11 | 6 9 12 Power 1 | 1 1 1 Propulsion 2 | 4 2 2 Utility 2 | . 1 3 Weapon 4 | 1 4 5 Tool/Special . | . . . Unused Backups 15 | . 5 10 Power 3 | . 1 2 Propulsion 2 | . 1 1 Utility 5 | . 1 4 Weapon 5 | . 2 3 Tool/Special . | . . . Average Slot Usage (%) 97 | . 99 95 Engine 13 | . 14 12 Treads 16 | . 20 14 Wheel 9 | . 7 11 Storage 14 | . 14 14 Processor 13 | . 13 14 Energy Gun 3 | . . 6 Energy Cannon 3 | . . 5 Ballistic Gun 1 | . . 3 Ballistic Cannon 18 | . 27 13 Peak Build Rating 16 | 9 11 16 Average Rating 12 | 6 10 13 On Entrance 8 | 6 9 11 Avg Prop Armor Cover (%) 11 | . 9 12 Naked Turns . | . . . Heaviest Build 59 | 12 51 59 Greatest Support 40 | 40 40 40 Greatest Overweight (x) 19 | . 5 19 Average Overweight (x) 3 | . 2 3 Largest Inventory Capacity 20 | 8 20 20 Average Capacity 17 | 8 14 20 Most Carried 16 | 6 11 16 Average Carried 11 | 5 9 12 Final Capacity 20 | 8 20 20 Final Carried 16 | 4 11 16 Class Distribution -------------------- 100% | Mutant Dominant Class ---------------- Mutant | -10/Materials Mutant | -10/Subcaves Resources | -11 -10 -10 ----------- Run | Yrd Mat Sub Matter Collected 1130 | 218 328 584 Remotely . | . . . Salvage Created 1022 | 118 361 543 Parts 66 | 3 29 34 Haulers Intercepted 2 | . 2 . Recyclers Shooed 1 | . 1 . Parts Field Recycled . | . . . Retrieved Matter . | . . . Parts Self-Destructed 9 | . . 9 Prevented . | . . . Parts Restored . | . . . Kills | -11 -10 -10 ------- Run | Yrd Mat Sub Combat Hostiles Destroyed 31 | . 13 18 Guns 5 | . . 5 Cannons 23 | . 13 10 AOE 2 | . . 2 Classes Destroyed 10 | 2 6 2 Builder 1 | . 1 . Tunneler 1 | 1 . . Hauler 2 | . 2 . Recycler 1 | 1 . . Operator 1 | . 1 . Watcher 3 | . 3 . Swarmer 6 | . 6 . Grunt 10 | . 7 3 Artisan 2 | . . 2 Subdweller 15 | . . 15 Best Kill Streak 3 | 2 3 3 Combat Bots Only 3 | . 3 3 Max Kills in Single Turn 1 | 1 1 1 Gunslinging . | . . . Exploded 1 | . . 1 Melee . | . . . Uniques/NPCs Destroyed . | . . . Combat | -11 -10 -10 -------- Run | Yrd Mat Sub Hostile Shots Fired 113 | . 47 66 Missed 30 | . 9 21 Hits 83 | . 38 45 Projectile 83 | . 38 45 AOE 4 | . . 4 Damage Taken 1595 | . 353 1242 Core 265 | . 58 207 Absorbed by Shields . | . . . Core Remaining (%) 100 | 100 . . Volleys Fired 145 | 9 41 95 Largest 2 | 2 2 2 Hottest 160 | 60 66 160 Shots Fired 262 | 18 82 162 Gun 81 | 18 . 63 Cannon 178 | . 82 96 Launcher 3 | . . 3 Special . | . . . Kinetic 181 | 9 82 90 Thermal 69 | . . 69 Explosive 3 | . . 3 Electromagnetic 9 | 9 . . Robot Hit Streak 36 | 4 7 36 Robot Miss Streak 4 | 4 3 3 Penetration Max . | . . . Secondary Targets 1 | . . 1 Max Gunslinging Chain 1 | . . 1 Shots Hit Robots 153 | 9 44 100 Core Hits 52 | 3 20 29 Critical Kills 1 | . . 1 Critical Parts Destroyed 1 | . . 1 Critical Strikes 6 | . 3 3 Meltdown 1 | . . 1 Destroy 1 | . . 1 Blast 4 | . 3 1 Melee Attacks . | . . . Impact . | . . . Slashing . | . . . Piercing . | . . . Sneak Attacks . | . . . Combat Hostiles . | . . . Follow-up Attacks . | . . . Damage Inflicted 3397 | 119 1004 2274 Guns 874 | 88 . 786 Cannons 2152 | . 970 1182 Explosions 337 | 31 . 306 Melee . | . . . Ramming 34 | . 34 . Kinetic 2020 | 31 970 1019 Thermal 980 | 31 . 949 Explosive 306 | . . 306 Electromagnetic 57 | 57 . . Impact . | . . . Slashing . | . . . Piercing . | . . . Highest Corruption . | . . . Average Corruption . | . . . Corruption Purged . | . . . Corruption Blocked . | . . . Overload Shots . | . . . Overflow Damage 19 | . 19 . Projectiles 19 | . 19 . Explosions . | . . . Melee . | . . . Knockbacks 14 | . 6 8 Impact . | . . . Kinetic 13 | . 5 8 Secondary 1 | . 1 . Self-Inflicted Damage 7 | . 7 . Shots . | . . . Rammed 5 | . 5 . Targets Rammed 5 | . 5 . Kicked . | . . . Crushed . | . . . Highest Temperature 123 | 40 42 123 Average Temperature 22 | 22 11 57 Received Heat Transfer 129 | . 48 81 Siege Activations . | . . . Martial Activations . | . . . Shielding Activations . | . . . Robots Disrupted . | . . . Combat Hostiles . | . . . Robots Corrupted . | . . . Combat Hostiles . | . . . Parts Fried . | . . . Impact Corruptions . | . . . Robots Melted 1 | . . 1 Combat Hostiles 1 | . . 1 Parts Melted 1 | . . 1 Heat Transferred 1279 | 50 . 1229 Parts Sabotaged . | . . . Parts Stolen . | . . . Parts Stripped . | . . . Power Chain Reactions 1 | 1 . . Alert | -11 -10 -10 ------- Run | Yrd Mat Sub Maximum Alert Level . | . . . Low Security (%) 100 | 100 100 . Level 1 . | . . . Level 2 . | . . . Level 3 . | . . . Level 4 . | . . . Level 5 . | . . . High Security . | . . . Max Security . | . . . Peak Influence 90 | 5 90 . Initial . | . . . Average 29 | 2 29 . Influence Increases 532 | 10 442 80 Destroy 0b10 Robot/C 320 | . 260 60 Destroy 0b10 Robot/NC 45 | 10 35 . Destroy Leader 90 | . 70 20 Successful Hack 39 | . 39 . Select Force Hacks 30 | . 30 . Destroy Structure 8 | . 8 . Influence Decreases 496 | 10 442 44 Time Decay 496 | 10 442 44 Squads Dispatched 3 | . 3 . Investigation 3 | . 3 . Extermination . | . . . Reinforcement . | . . . Assault . | . . . Garrison . | . . . Intercept . | . . . Searches Triggered . | . . . Construction Impeded . | . . . Haulers Reinforced . | . . . Active Scanning Responses . | . . . Cargo Convoy Interrupts . | . . . Stealth | -11 -10 -10 --------- Run | Yrd Mat Sub Distress Signals 1 | . 1 . Communications Jammed . | . . . Distress Signals . | . . . Times Spotted 37 | . 15 22 Peak Tracking Total 4 | . 4 3 Tactical Retreats 1 | . . 1 Traps | -11 -10 -10 ------- Run | Yrd Mat Sub Traps Triggered 6 | . 4 2 Indirectly . | . . . Trap Hack Attempts . | . . . Triggered . | . . . Disarmed . | . . . Reprogrammed . | . . . Reused . | . . . Traps Extracted . | . . . Installed . | . . . Triggered . | . . . Machines | -11 -10 -10 ---------- Run | Yrd Mat Sub Machines Disabled 1 | . . 1 Max in Single Turn 1 | . . 1 Machines Repaired . | . . . Machines Dismantled . | . . . Machines Sabotaged . | . . . Overloaded Fab Kills . | . . . Hacking | -11 -10 -10 --------- Run | Yrd Mat Sub Machines Accessed 10 | . 9 1 Terminals 8 | . 8 . Fabricators . | . . . Repair Stations . | . . . Recycling Units 1 | . 1 . Scanalyzers . | . . . Garrison Access . | . . . Total Hacks 29 | . 25 4 Successful 20 | . 16 4 Failed 9 | . 9 . Catastrophic . | . . . Database Lockouts . | . . . Manual 23 | . 23 . Terminals 24 | . 24 . Fabricators . | . . . Repair Stations . | . . . Recycling Units 1 | . 1 . Scanalyzers . | . . . Garrison Access . | . . . Terminal Hacks 8 | . 4 4 Record 4 | . . 4 Robot Analysis 2 | . 2 . Prototype ID Bank 1 | . 1 . Locate Traps 1 | . 1 . Fabricator Hacks . | . . . Repair Station Hacks . | . . . Recycling Unit Hacks . | . . . Scanalyzer . | . . . Garrison Access Hacks . | . . . Unauthorized Hacks 12 | . 12 . Terminals 11 | . 11 . Assimilate 1 | . 1 . Botnet 2 | . 2 . Operators 1 | . 1 . Skim 7 | . 7 . Fabricators . | . . . Repair Stations . | . . . Recycling Units 1 | . 1 . Tunnel 1 | . 1 . Scanalyzers . | . . . Garrison Access . | . . . Data Cores Recovered 1 | . 1 . Used . | . . . Hacking Detections 7 | . 7 . Full Trace Events . | . . . Feedback Events . | . . . Feedback Blocked . | . . . Robot Schematics Acquired . | . . . Robots Built . | . . . Authchips . | . . . Time . | . . . Total Robot Build Rating . | . . . Part Schematics Acquired . | . . . Parts Built . | . . . Authchips . | . . . Time . | . . . Total Part Build Rating . | . . . Part Studies Acquired . | . . . Parts Repaired . | . . . Time . | . . . Parts Recycled . | . . . Recycled Matter . | . . . Retrieved Matter . | . . . Retrieved Components . | . . . Parts Scanalyzed . | . . . Part Schematics Acquired . | . . . Parts Damaged . | . . . Bothacking | -11 -10 -10 ------------ Run | Yrd Mat Sub Used RIF Installer . | . . . Robots Hacked . | . . . Non-combat . | . . . Combat . | . . . Robot Hacks Applied . | . . . Relay Couplers Released . | . . . Fabnet Peak Effective % . | . . . Robots Rewired . | . . . Allies Hacked . | . . . Hacks Repelled . | . . . Allies | -11 -10 -10 -------- Run | Yrd Mat Sub Total Allies . | . . . Largest Group . | . . . Highest-Rated Group . | . . . Highest-Rated Ally . | . . . Total Orders . | . . . Ally Attacks . | . . . Total Damage . | . . . Kills . | . . . Allies Corrupted . | . . . Allies Melted . | . . . Intel | -11 -10 -10 ------- Run | Yrd Mat Sub Active Infowar (turns) 51 | 10 41 . Terrain 51 | 10 41 . Robot Analysis Total 2 | . 2 . Derelict Logs Recovered 2 | . . 2 Drone Launches . | . . . Drone Recoveries . | . . . Exploration | -11 -10 -10 ------------- Run | Yrd Mat Sub Turns Passed 4548 | 41 1810 2697 Spaces Moved 2367 | 10 982 1375 Core 4 | . . 4 Treads 590 | 1 438 151 Legs 9 | 9 . . Wheels 1764 | . 544 1220 Hover . | . . . Flight . | . . . Fastest Speed 120 | 120 140 130 Average Speed 162 | 124 162 162 Slowest Speed 1000 | 160 320 1000 Overloaded Moves . | . . . Propulsion Burnouts . | . . . Robots Hopped . | . . . Potential Cave-ins . | . . . Cave-ins Triggered . | . . . Exploration Rate (%) 52 | 3 98 56 Regions Visited 2 Branch Regions 1 Pre-discovered Areas 5 | . 3 2 Known Exits Taken . | . . . Unknown Exits Taken 2 | 1 1 . Scrap Searched 1 | . . 1 Spaces Dug 1 | . . 1 Terrain Destroyed 19 | 1 4 14 Melee . | . . . Projectile 8 | . 4 4 AOE 11 | 1 . 10 Terrain Rammed . | . . . Walls Destroyed . | . . . Machines Disabled . | . . . Actions | -11 -10 -10 --------- Run | Yrd Mat Sub Total 2811 | 23 1112 1676 Wait 243 | . 64 179 Move 2365 | 9 981 1375 Hop . | . . . Pick Up 15 | . 9 6 Fast Attach 8 | 1 2 5 Attach 6 | 2 . 4 Detach . | . . . Swap 15 | . 6 9 Drop 9 | 2 4 3 Fire 145 | 9 41 95 Melee . | . . . Ram 2 | . 2 . Kick . | . . . Crush 3 | . 3 . Escape Stasis . | . . . Rewire . | . . . Trap . | . . . Miscellaneous . | . . . Route ------- -11/Scrapyard -10/Materials (discovered 6 exits: [*Mat x3] / [*Min x2] / *Sub) -10/Subcaves (discovered 3 exits: *Mat x2 / Rec) History --------- Turn | Location | Event 24 | -11/Scrapyard | Discovered new exit (range 2) 42 | -11/Scrapyard | Entered Materials 313 | -10/Materials | Build established: Mutant 480 | -10/Materials | Discovered new exit (range 5) 530 | -10/Materials | Discovered new exit (range 13) 678 | -10/Materials | Discovered new exit (range 5) 977 | -10/Materials | Discovered new exit (range 8) 1005 | -10/Materials | Discovered new exit (range 13) 1227 | -10/Materials | Learned location of Recycling (-8) 1294 | -10/Materials | Learned location of 2 exits from Mines 1314 | -10/Materials | Learned Storage terminal intel 1350 | -10/Materials | Learned Recycling recycling unit intel 1838 | -10/Materials | Discovered new exit (range 10) 1852 | -10/Materials | Entered Subcaves 1853 | -10/Subcaves | Approached by a straggling Scientist 1853 | -10/Subcaves | Identified exit to Materials 1863 | -10/Subcaves | Learned 4 Materials zone layouts 1918 | -10/Subcaves | Learned location of Zion (-6) 2017 | -10/Subcaves | Shifting Twisted Machinery released Battle Rifle 2023 | -10/Subcaves | Shifting Twisted Machinery released Barrage Gun 2240 | -10/Subcaves | Shifting Twisted Machinery released Sub. Optics 2446 | -10/Subcaves | Shifting Twisted Machinery released Sub. Power Source 2455 | -10/Subcaves | Shifting Twisted Machinery released Sub. Shrapnel Launcher 2509 | -10/Subcaves | A swath of the cavern ceiling suddenly collapsed 2585 | -10/Subcaves | Visited Clippyterm 2590 | -10/Subcaves | Identified exit to Recycling 2762 | -10/Subcaves | A Subdweller sparked back to life 2801 | -10/Subcaves | Found Prototype Processor 2968 | -10/Subcaves | Shifting Twisted Machinery released Sub. Optics 3515 | -10/Subcaves | Core integrity fell below 50% 3644 | -10/Subcaves | Met a Zionite searching for "candidates" 3675 | -10/Subcaves | A swath of the cavern ceiling suddenly collapsed 4044 | -10/Subcaves | Visited 4L-MR0's lab 4101 | -10/Subcaves | Found Prototype Energy Cannon 4185 | -10/Subcaves | Core integrity fell below 20% 4549 | -10/Subcaves | Destroyed by Piercing Trap Last Messages --------------- 04183_ 16-UPX(R) affixes Scrap Shield Fragment to Scrap Shield. 04184_ 16-UPX(R) destroyed. 04190_ Acquired 13 matter. 04339_ Sub. Monowheel shoots sparks and powers down. 04380_ Acquired Sub. Monowheel. 04382_ Dropped Broken Sub. Monowheel. 04393_ G-47 Trooper destroyed. 04399_ G-34 Mercenary destroyed. 04403_ Imp. Heat Sink fries itself beyond repair. 04404_ Aluminum Leg fries itself beyond repair. 04409_ Acquired 10 matter. 04415_ Sml. Laser fries itself beyond repair. 04416_ Ion Engine fries itself beyond repair. 04549_ Triggered Piercing Trap. 04549_ Spikes shoot up from the floor. 04549_ Critical hit (Impale). Map ----- +----------------------------------------------------+ | # ##???????????????????##### ## | | ## #????????????????????## ##? | | ## ##??????????????????### #?? | | ## ##???????????????????# ##" | | " #????????????????????# ! | | ###"# #????????????????????# ## """ | | ###""# ###????????????????????# ####" " | | ?#""### ##????????????????????## #???#"" | | ##"####### ##??????????????????## ""#????! | | #""""##??# #?????????????????## ""#????? | | ###"""#??#### #?????????????????# "##????? | | ?#""###?????# #?????????????????### "#??????? | | ###"#???????# #???????????????????## ##?????? | | #"""##??????# ##???????????????????## #????#? | | ###""#?????# #????????????????????# ##??? ## | | ??#"##?????# ##???????????????????## #?? # | | ??# #??????## ###????????#####??????## #? #? | | ??# #???????###??????????# ####???# ## #? | | ??# ##???????????????????# # ##### # ## | | ###"##?????????????????### ^ ?? # | | "# ##?????????####????# #????# # | | #"# ##???????### ###??# ####?# # | | """##??????## #### ##?# # # | | # ##???????# ### ## # ### | | ###???????## ^ ; # #??# | | #???????## #### # #^ @ #" #??? | | ##?????## ##??# ### #" #?? | | ###??## ##???# ### ##; ""# ##??? | | #### #????# #?#####" " ### #????? | | #????# ?????#" ###?#### ##????? | | ##### ##????######????##" ;#???????###?????? | | #???########???????????????# """"#???????????????? | | ???????????????????????????# #???????????????? | | ???????????????????????????#######???????????????? | | ?????????????????????????????????????????????????? | | ?????????????????????????????????????????????????? | | ?????????????????????????????????????????????????? | | ?????????????????????????????????????????????????? | | ?????????????????????????????????????????????????? | | ?????????????????????????????????????????????????? | | ?????????????????????????????????????????????????? | | ?????????????????????????????????????????????????? | | ?????????????????????????????????????????????????? | | ?????????????????????????????????????????????????? | | ?????????????????????????????????????????????????? | | ?????????????????????????????????????????????????? | | | | | | | | | +----------------------------------------------------+ Best States ------------- Heat Dissipation 25 Energy Generation 15 Energy Capacity 200 Matter Stores 300 Matter Capacity 300 Sight Range 16 Terrain Scan Range 16 Terrain Scan Density 10 Evasion (%) 45 Targeting Accuracy 6 Recoil Reduction 2 Item Schematics ----------------- None Robot Schematics ------------------ None Fabricated ------------ Nothing Repaired ---------- Nothing Studied --------- None Alien Tech Used ----------------- None Achievements -------------- None Challenges ------------ None Game ------ Seed MetaBombardmentArmor Manual? 0 Play Time 00:22:31 Cumulative 377.9 hours Start 2026.03.30 @ 23:22:40 End 2026.03.31 @ 19:52:08 Sessions 5 Manual Loads 0 Difficulty Rogue Special Mode None Game No. 309 Rogue 273 Adventurer 36 Explorer 0 Win Type - Total 5 Types 2/0/0/1/0/0/0/2/0/0 Lore% 71 Gallery% 66 Achievement% 54 Wizard Run 0 Options --------- Layout 1 ASCII 0 Keyboard 0 Movement Numpad Keybinds 0 Fullscreen 1 Font 48/Smallcaps Map View 50x35 Zoom Use 0% Tactical HUD 1 Map Filters NONE Filters NONE Steam 1 RUN: d8df0e41-551e-400e-b4c9-ea942d0f137d